[Event "*** Titled Tuesday Blitz"]
[Site "Chess.com"]
[Date "2019.07.02"]
[Round "5"]
[White "Micki-taryan"]
[Black "severomorskij"]
[Result "1/2-1/2"]
[WhiteElo "2959"]
[BlackElo "2854"]
[TimeControl "180+2"]
[EndTime "14:05:34 PDT"]
[Termination "Game drawn by repetition"]

1. Nf3 {[%clk 0:03:01.4]} 1... d5 {[%clk 0:02:56.3]} 2. g3 {[%clk 0:03:02]} 2...
Nf6 {[%clk 0:02:55.8]} 3. Bg2 {[%clk 0:03:03.5]} 3... c5 {[%clk 0:02:57.1]} 4.
O-O {[%clk 0:03:02.9]} 4... e6 {[%clk 0:02:58.3]} 5. b3 {[%clk 0:03:02.8]} 5...
Be7 {[%clk 0:02:54.4]} 6. Bb2 {[%clk 0:03:04.7]} 6... O-O {[%clk 0:02:55.3]} 7.
d3 {[%clk 0:03:00.2]} 7... Nc6 {[%clk 0:02:54.3]} 8. Nbd2 {[%clk 0:03:02.1]}
8... b6 {[%clk 0:02:50.6]} 9. e4 {[%clk 0:03:02.2]} 9... Bb7 {[%clk 0:02:51.7]}
10. Re1 {[%clk 0:03:03]} 10... Qc7 {[%clk 0:02:50]} 11. exd5 {[%clk 0:03:02.8]}
11... exd5 {[%clk 0:02:50.1]} 12. Ne5 {[%clk 0:03:02.6]} 12... Rfe8 {[%clk
0:02:46]} 13. Ndf3 {[%clk 0:03:02.5]} 13... d4 {[%clk 0:02:45.4]} 14. Nxc6
{[%clk 0:02:29.6]} 14... Bxc6 {[%clk 0:02:43.9]} 15. Bc1 {[%clk 0:02:27.6]}
15... Bd6 {[%clk 0:02:29.6]} 16. Bd2 {[%clk 0:02:24.3]} 16... h6 {[%clk
0:02:24.6]} 17. a4 {[%clk 0:02:18.5]} 17... a5 {[%clk 0:02:24.5]} 18. Rxe8+
{[%clk 0:02:15.6]} 18... Rxe8 {[%clk 0:02:24.7]} 19. Qf1 {[%clk 0:02:17.5]}
19... Qb7 {[%clk 0:02:14.9]} 20. Nh4 {[%clk 0:02:17.7]} 20... Bxg2 {[%clk
0:02:15.2]} 21. Qxg2 {[%clk 0:02:19.2]} 21... Qxg2+ {[%clk 0:02:14.2]} 22. Kxg2
{[%clk 0:02:21.1]} 22... Re2 {[%clk 0:02:13.9]} 23. Rd1 {[%clk 0:02:19.9]} 23...
Nd5 {[%clk 0:01:47.2]} 24. Kf3 {[%clk 0:02:18.9]} 24... Re6 {[%clk 0:01:46.3]}
25. h3 {[%clk 0:02:17.5]} 25... Kf8 {[%clk 0:01:33.3]} 26. Nf5 {[%clk
0:02:13.2]} 26... Ne7 {[%clk 0:01:22.3]} 27. Nxd6 {[%clk 0:01:54.5]} 27... Rxd6
{[%clk 0:01:23]} 28. Re1 {[%clk 0:01:56.4]} 28... Rf6+ {[%clk 0:01:22.7]} 29.
Kg2 {[%clk 0:01:57]} 29... Ke8 {[%clk 0:01:15]} 30. c4 {[%clk 0:01:45.4]} 30...
Kd7 {[%clk 0:01:13.6]} 31. f4 {[%clk 0:01:33.7]} 31... Re6 {[%clk 0:01:10.9]}
32. Re4 {[%clk 0:01:32.4]} 32... f5 {[%clk 0:00:48.8]} 33. Rxe6 {[%clk
0:01:33.5]} 33... Kxe6 {[%clk 0:00:50.7]} 34. Kf3 {[%clk 0:01:35.4]} 34... h5
{[%clk 0:00:50.1]} 35. h4 {[%clk 0:01:33.5]} 35... g6 {[%clk 0:00:50.4]} 36. Be1
{[%clk 0:01:34.7]} 36... Ng8 {[%clk 0:00:51.2]} 37. Bd2 {[%clk 0:01:36]} 37...
Nf6 {[%clk 0:00:52.2]} 38. Be1 {[%clk 0:01:37.6]} 38... Ng4 {[%clk 0:00:53.2]}
39. Bd2 {[%clk 0:01:39.3]} 39... Nh2+ {[%clk 0:00:53]} 40. Kg2 {[%clk
0:01:40.4]} 40... Ng4 {[%clk 0:00:54]} 41. Kf3 {[%clk 0:01:41.7]} 41... Nh2+
{[%clk 0:00:48.9]} 42. Kg2 {[%clk 0:01:42.9]} 42... Ng4 {[%clk 0:00:50.8]} 43.
Kf3 {[%clk 0:01:44.5]} 1/2-1/2

[Event "*** Titled Tuesday Blitz"]
[Site "Chess.com"]
[Date "2019.07.02"]
[Round "5"]
[White "Andrei_Belozerov"]
[Black "SalgadoChess91"]
[Result "0-1"]
[WhiteElo "2549"]
[BlackElo "2832"]
[TimeControl "180+2"]
[EndTime "14:05:35 PDT"]
[Termination "SalgadoChess91 won by resignation"]

1. e4 {[%clk 0:03:01.9]} 1... c5 {[%clk 0:02:59.7]} 2. Nf3 {[%clk 0:03:02.1]}
2... Nc6 {[%clk 0:02:57.5]} 3. d4 {[%clk 0:03:03]} 3... cxd4 {[%clk 0:02:58.1]}
4. Nxd4 {[%clk 0:03:04.5]} 4... Nf6 {[%clk 0:02:59.5]} 5. Nc3 {[%clk 0:03:05.5]}
5... d6 {[%clk 0:03:01.2]} 6. f3 {[%clk 0:03:04.8]} 6... e5 {[%clk 0:02:59.9]}
7. Nb3 {[%clk 0:03:05.7]} 7... Be7 {[%clk 0:03:01]} 8. Be3 {[%clk 0:03:04.6]}
8... Be6 {[%clk 0:03:02.1]} 9. Qe2 {[%clk 0:03:02.4]} 9... a5 {[%clk 0:02:55.7]}
10. O-O-O {[%clk 0:02:59.6]} 10... Qb8 {[%clk 0:02:54.1]} 11. Kb1 {[%clk
0:02:38.6]} 11... a4 {[%clk 0:02:53.2]} 12. Nc1 {[%clk 0:02:39.3]} 12... a3
{[%clk 0:02:51.3]} 13. b3 {[%clk 0:02:39.6]} 13... O-O {[%clk 0:02:51.9]} 14. g4
{[%clk 0:02:40.4]} 14... Rc8 {[%clk 0:02:43.1]} 15. Nd5 {[%clk 0:02:20.8]} 15...
Bxd5 {[%clk 0:02:37.6]} 16. exd5 {[%clk 0:02:21.7]} 16... Nb4 {[%clk 0:02:38.3]}
17. c4 {[%clk 0:02:13.9]} 17... b5 {[%clk 0:02:21.6]} 18. g5 {[%clk 0:02:14.9]}
18... bxc4 {[%clk 0:02:19]} 19. gxf6 {[%clk 0:02:11.8]} 19... Bxf6 {[%clk
0:02:16.9]} 20. Bh3 {[%clk 0:02:06.4]} 20... c3 {[%clk 0:02:17.6]} 21. Bf5
{[%clk 0:01:34.4]} 21... c2+ {[%clk 0:02:17.2]} 22. Bxc2 {[%clk 0:01:34.5]}
22... Rxc2 {[%clk 0:02:17.7]} 23. Rd2 {[%clk 0:01:35.4]} 23... Rb2+ {[%clk
0:02:06.7]} 24. Rxb2 {[%clk 0:01:31.1]} 24... axb2 {[%clk 0:02:07.8]} 25. Qxb2
{[%clk 0:01:32.1]} 25... Nxd5 {[%clk 0:02:09]} 26. Bf2 {[%clk 0:01:24.7]} 26...
Qc8 {[%clk 0:02:00]} 27. Ne2 {[%clk 0:01:20.8]} 27... Qf5+ {[%clk 0:01:54.3]}
28. Qc2 {[%clk 0:01:21.7]} 28... Qxc2+ {[%clk 0:01:45.8]} 29. Kxc2 {[%clk
0:01:23.1]} 29... Rxa2+ {[%clk 0:01:46.2]} 30. Kd3 {[%clk 0:01:24.4]} 30... Nb4+
{[%clk 0:01:39.2]} 31. Ke3 {[%clk 0:01:25.1]} 31... Bg5+ {[%clk 0:01:15.9]} 32.
f4 {[%clk 0:01:26]} 32... exf4+ {[%clk 0:01:16.7]} 33. Kf3 {[%clk 0:01:27.4]}
33... Nd3 {[%clk 0:01:17.7]} 34. Bd4 {[%clk 0:01:24.9]} 34... Ne5+ {[%clk
0:01:17.9]} 35. Bxe5 {[%clk 0:01:24.9]} 35... dxe5 {[%clk 0:01:19]} 36. Rd1
{[%clk 0:01:22.6]} 36... f5 {[%clk 0:01:19]} 37. Nc3 {[%clk 0:01:12.8]} 37...
e4+ {[%clk 0:01:17.4]} 38. Nxe4 {[%clk 0:01:13.5]} 38... fxe4+ {[%clk
0:01:18.4]} 39. Kxe4 {[%clk 0:01:14.9]} 39... Rxh2 {[%clk 0:01:12.4]} 40. Kf5
{[%clk 0:01:14.5]} 40... Bf6 {[%clk 0:01:12]} 0-1

[Event "*** Titled Tuesday Blitz"]
[Site "Chess.com"]
[Date "2019.07.02"]
[Round "5"]
[White "PIwan"]
[Black "resha1988"]
[Result "0-1"]
[WhiteElo "2457"]
[BlackElo "2738"]
[TimeControl "180+2"]
[EndTime "14:05:40 PDT"]
[Termination "resha1988 won by resignation"]

1. c4 {[%clk 0:03:01.9]} 1... c5 {[%clk 0:02:59.3]} 2. Nf3 {[%clk 0:03:02.5]}
2... Nc6 {[%clk 0:03:00.3]} 3. e3 {[%clk 0:03:03.4]} 3... Nf6 {[%clk 0:03:00.8]}
4. Nc3 {[%clk 0:03:04.8]} 4... g6 {[%clk 0:02:55.4]} 5. d4 {[%clk 0:03:05.7]}
5... cxd4 {[%clk 0:02:57.3]} 6. exd4 {[%clk 0:03:07]} 6... d5 {[%clk 0:02:58.7]}
7. cxd5 {[%clk 0:03:08.2]} 7... Nxd5 {[%clk 0:03:00.6]} 8. Qb3 {[%clk
0:03:09.4]} 8... Nxc3 {[%clk 0:03:01.4]} 9. Bc4 {[%clk 0:03:10.2]} 9... e6
{[%clk 0:02:56.3]} 10. bxc3 {[%clk 0:03:09.9]} 10... Bg7 {[%clk 0:02:44.9]} 11.
Ba3 {[%clk 0:03:11]} 11... Bf8 {[%clk 0:02:45.5]} 12. Bxf8 {[%clk 0:03:03]}
12... Kxf8 {[%clk 0:02:47.4]} 13. O-O {[%clk 0:03:04.3]} 13... Kg7 {[%clk
0:02:48.5]} 14. Qd1 {[%clk 0:03:05]} 14... Qf6 {[%clk 0:02:43.2]} 15. Qe2 {[%clk
0:02:55.6]} 15... Rd8 {[%clk 0:02:42.8]} 16. Bd3 {[%clk 0:02:42.3]} 16... b6
{[%clk 0:02:37.3]} 17. Qe3 {[%clk 0:02:18.7]} 17... Bb7 {[%clk 0:02:34.4]} 18.
Be4 {[%clk 0:02:19.7]} 18... Na5 {[%clk 0:02:27]} 19. Bxb7 {[%clk 0:02:20.2]}
19... Nxb7 {[%clk 0:02:28.9]} 20. Ne5 {[%clk 0:02:21.5]} 20... h5 {[%clk
0:02:25.4]} 21. c4 {[%clk 0:02:04.6]} 21... Nd6 {[%clk 0:02:22.6]} 22. Rfd1
{[%clk 0:01:57.1]} 22... Rac8 {[%clk 0:02:23.2]} 23. Rac1 {[%clk 0:01:57.7]}
23... Nf5 {[%clk 0:02:24.1]} 24. Qe4 {[%clk 0:01:56.9]} 24... Qh4 {[%clk
0:01:56.1]} 25. f4 {[%clk 0:01:42]} 25... Qe7 {[%clk 0:01:49.9]} 26. Nf3 {[%clk
0:01:34]} 26... Qc7 {[%clk 0:01:40]} 27. Ne5 {[%clk 0:01:09.7]} 27... Rd6 {[%clk
0:01:29.7]} 28. Rd3 {[%clk 0:01:07.6]} 28... Rcd8 {[%clk 0:01:21.3]} 29. c5
{[%clk 0:00:49.5]} 29... Rxd4 {[%clk 0:01:10]} 30. Rxd4 {[%clk 0:00:48.4]} 30...
Rxd4 {[%clk 0:01:11.9]} 31. Qc2 {[%clk 0:00:48]} 31... bxc5 {[%clk 0:01:06.7]}
32. Qxc5 {[%clk 0:00:46.9]} 32... Rd1+ {[%clk 0:01:05.4]} 0-1

[Event "*** Titled Tuesday Blitz"]
[Site "Chess.com"]
[Date "2019.07.02"]
[Round "5"]
[White "Alex_Terzi"]
[Black "KhazarBabazada"]
[Result "1-0"]
[WhiteElo "2478"]
[BlackElo "2652"]
[TimeControl "180+2"]
[EndTime "14:05:47 PDT"]
[Termination "Alex_Terzi won by resignation"]

1. d4 {[%clk 0:03:01.9]} 1... Nf6 {[%clk 0:03:00.7]} 2. Bf4 {[%clk 0:03:02.7]}
2... g6 {[%clk 0:03:02.6]} 3. Nc3 {[%clk 0:03:02.4]} 3... Bg7 {[%clk 0:03:04.1]}
4. e4 {[%clk 0:03:03.5]} 4... d6 {[%clk 0:03:05.5]} 5. Nf3 {[%clk 0:03:03.2]}
5... O-O {[%clk 0:03:06]} 6. h3 {[%clk 0:03:04.2]} 6... Nc6 {[%clk 0:03:06.9]}
7. Qd2 {[%clk 0:03:05.1]} 7... a6 {[%clk 0:03:06.5]} 8. O-O-O {[%clk 0:03:03.8]}
8... b5 {[%clk 0:03:07.6]} 9. Qe3 {[%clk 0:03:04.9]} 9... b4 {[%clk 0:03:04.5]}
10. Nb1 {[%clk 0:02:50]} 10... d5 {[%clk 0:02:59.9]} 11. e5 {[%clk 0:02:46.2]}
11... Ne4 {[%clk 0:03:00.7]} 12. Nbd2 {[%clk 0:02:45.8]} 12... Nxd2 {[%clk
0:02:31.7]} 13. Qxd2 {[%clk 0:02:37]} 13... a5 {[%clk 0:02:32.5]} 14. Bh6 {[%clk
0:02:34.2]} 14... a4 {[%clk 0:02:30.8]} 15. h4 {[%clk 0:02:22.1]} 15... b3
{[%clk 0:02:23.5]} 16. cxb3 {[%clk 0:02:16]} 16... axb3 {[%clk 0:02:25.4]} 17.
a3 {[%clk 0:02:17.4]} 17... Bf5 {[%clk 0:02:03.4]} 18. Bxg7 {[%clk 0:01:56.5]}
18... Kxg7 {[%clk 0:02:02.9]} 19. h5 {[%clk 0:01:58]} 19... Rh8 {[%clk
0:01:30.3]} 20. h6+ {[%clk 0:01:58.6]} 20... Kg8 {[%clk 0:01:27.8]} 21. Bd3
{[%clk 0:01:56.2]} 21... e6 {[%clk 0:01:25.3]} 22. Bxf5 {[%clk 0:01:48.2]} 22...
exf5 {[%clk 0:01:27.2]} 23. Qc3 {[%clk 0:01:34.9]} 23... Na5 {[%clk 0:01:23.6]}
24. Kb1 {[%clk 0:01:26.9]} 24... Qe7 {[%clk 0:01:23.3]} 25. Nd2 {[%clk
0:01:24.6]} 25... Kf8 {[%clk 0:01:00.1]} 26. Rc1 {[%clk 0:01:23]} 26... Ra7
{[%clk 0:00:55.8]} 27. Nxb3 {[%clk 0:01:18.4]} 27... Nc4 {[%clk 0:00:55.4]} 28.
Nc5 {[%clk 0:01:15.4]} 28... Ra8 {[%clk 0:00:21.2]} 29. Qb4 {[%clk 0:01:14]}
29... g5 {[%clk 0:00:22.4]} 30. Nd7+ {[%clk 0:01:12.3]} 30... Ke8 {[%clk
0:00:23.6]} 31. Nf6+ {[%clk 0:01:12.2]} 31... Kd8 {[%clk 0:00:24.6]} 32. Qxe7+
{[%clk 0:01:12.8]} 1-0

[Event "*** Titled Tuesday Blitz"]
[Site "Chess.com"]
[Date "2019.07.02"]
[Round "5"]
[White "xdb"]
[Black "IngOscarArdila"]
[Result "1-0"]
[WhiteElo "2225"]
[BlackElo "2022"]
[TimeControl "180+2"]
[EndTime "14:06:02 PDT"]
[Termination "xdb won on time"]

1. d4 {[%clk 0:03:01.9]} 1... Nf6 {[%clk 0:02:43.2]} 2. c4 {[%clk 0:03:02.5]}
2... g6 {[%clk 0:02:43.9]} 3. Nc3 {[%clk 0:03:03.7]} 3... Bg7 {[%clk 0:02:44.8]}
4. e4 {[%clk 0:03:05.2]} 4... d6 {[%clk 0:02:46]} 5. Nf3 {[%clk 0:03:06.3]} 5...
O-O {[%clk 0:02:47.5]} 6. Be2 {[%clk 0:03:07.3]} 6... e5 {[%clk 0:02:48.7]} 7.
O-O {[%clk 0:03:08]} 7... Nc6 {[%clk 0:02:49.6]} 8. d5 {[%clk 0:03:09.1]} 8...
Ne7 {[%clk 0:02:50.7]} 9. Ne1 {[%clk 0:03:10.3]} 9... Ne8 {[%clk 0:02:51.7]} 10.
Be3 {[%clk 0:03:04.8]} 10... f5 {[%clk 0:02:51.9]} 11. f3 {[%clk 0:03:06.2]}
11... f4 {[%clk 0:02:52.6]} 12. Bf2 {[%clk 0:03:07.6]} 12... g5 {[%clk
0:02:52.9]} 13. c5 {[%clk 0:03:04.8]} 13... Ng6 {[%clk 0:02:53.6]} 14. a4 {[%clk
0:03:03]} 14... Rf7 {[%clk 0:02:53.4]} 15. a5 {[%clk 0:03:02.1]} 15... a6 {[%clk
0:02:52.3]} 16. cxd6 {[%clk 0:02:59.9]} 16... cxd6 {[%clk 0:02:52]} 17. Na4
{[%clk 0:03:00.6]} 17... Bd7 {[%clk 0:02:51.2]} 18. Nb6 {[%clk 0:03:01.1]} 18...
Rb8 {[%clk 0:02:51.3]} 19. Nxd7 {[%clk 0:03:00.3]} 19... Qxd7 {[%clk 0:02:51.6]}
20. Qa4 {[%clk 0:02:59.9]} 20... Qe7 {[%clk 0:02:49.6]} 21. Rc1 {[%clk
0:02:55.4]} 21... h5 {[%clk 0:02:49.5]} 22. h3 {[%clk 0:02:45.4]} 22... Nf6
{[%clk 0:02:47.4]} 23. Bb6 {[%clk 0:02:39.3]} 23... Bf8 {[%clk 0:02:26.7]} 24.
Rc7 {[%clk 0:02:38.6]} 24... Qe8 {[%clk 0:02:20.8]} 25. Qxe8 {[%clk 0:02:37.4]}
25... Rxe8 {[%clk 0:02:20]} 26. Nd3 {[%clk 0:02:27.2]} 26... g4 {[%clk 0:02:18]}
27. hxg4 {[%clk 0:02:23.7]} 27... hxg4 {[%clk 0:02:18.5]} 28. Rxf7 {[%clk
0:02:25.3]} 28... Kxf7 {[%clk 0:02:19.1]} 29. Rc1 {[%clk 0:02:26.9]} 29... Re7
{[%clk 0:02:06.5]} 30. Rc8 {[%clk 0:02:15.6]} 30... gxf3 {[%clk 0:01:33.4]} 31.
gxf3 {[%clk 0:02:17.5]} 31... Bh6 {[%clk 0:01:29]} 32. Bf1 {[%clk 0:02:09.9]}
32... Bg5 {[%clk 0:01:26.5]} 33. Bh3 {[%clk 0:02:09.8]} 33... Bh4 {[%clk
0:01:25.3]} 34. Be6+ {[%clk 0:02:04.9]} 34... Kg7 {[%clk 0:01:25.9]} 35. Bd8
{[%clk 0:02:03.4]} 35... Bg3 {[%clk 0:00:59.7]} 36. Bxe7 {[%clk 0:02:02.7]}
36... Nxe7 {[%clk 0:01:00.4]} 37. Rc7 {[%clk 0:01:59.2]} 37... Kf8 {[%clk
0:01:00.7]} 38. Rxb7 {[%clk 0:01:49.5]} 1-0

[Event "*** Titled Tuesday Blitz"]
[Site "Chess.com"]
[Date "2019.07.02"]
[Round "5"]
[White "LarissaSteenbekkers"]
[Black "Grootneus"]
[Result "0-1"]
[WhiteElo "1985"]
[BlackElo "2166"]
[TimeControl "180+2"]
[EndTime "14:06:03 PDT"]
[Termination "Grootneus won by resignation"]

1. e4 {[%clk 0:03:01.9]} 1... c5 {[%clk 0:02:59.5]} 2. Nf3 {[%clk 0:03:01.1]}
2... d6 {[%clk 0:03:00.7]} 3. d4 {[%clk 0:02:59.7]} 3... cxd4 {[%clk 0:03:02.6]}
4. Nxd4 {[%clk 0:03:00.7]} 4... Nf6 {[%clk 0:03:04.2]} 5. Nc3 {[%clk 0:03:01.3]}
5... g6 {[%clk 0:03:05.7]} 6. Be3 {[%clk 0:03:00.6]} 6... Bg7 {[%clk 0:03:06.2]}
7. f3 {[%clk 0:03:01]} 7... O-O {[%clk 0:03:04.8]} 8. Qd2 {[%clk 0:03:01.3]}
8... Nc6 {[%clk 0:03:05.9]} 9. O-O-O {[%clk 0:03:01.4]} 9... d5 {[%clk
0:02:57.3]} 10. Qe1 {[%clk 0:02:04.1]} 10... e5 {[%clk 0:02:26.5]} 11. Nxc6
{[%clk 0:02:02]} 11... bxc6 {[%clk 0:02:25.5]} 12. exd5 {[%clk 0:02:01.7]} 12...
Nxd5 {[%clk 0:02:25.5]} 13. Bc4 {[%clk 0:01:54.8]} 13... Be6 {[%clk 0:02:17.8]}
14. Ne4 {[%clk 0:01:53.6]} 14... Qc7 {[%clk 0:02:03.8]} 15. Bc5 {[%clk
0:01:47.7]} 15... Rfd8 {[%clk 0:02:00.1]} 16. Qh4 {[%clk 0:01:42.2]} 16... h6
{[%clk 0:01:37.4]} 17. g4 {[%clk 0:01:40.4]} 17... a5 {[%clk 0:01:29.6]} 18. g5
{[%clk 0:01:23.8]} 18... h5 {[%clk 0:01:28.9]} 19. Qf2 {[%clk 0:01:18.7]} 19...
Rab8 {[%clk 0:01:27.7]} 20. h4 {[%clk 0:01:12.5]} 20... Qb7 {[%clk 0:01:28.1]}
21. c3 {[%clk 0:01:02]} 21... Nxc3 {[%clk 0:01:08.7]} 22. Bxe6 {[%clk
0:00:40.1]} 22... Rxd1+ {[%clk 0:00:43.6]} 23. Rxd1 {[%clk 0:00:33]} 23... Nxd1
{[%clk 0:00:44.9]} 24. Nd6 {[%clk 0:00:24.8]} 24... Nxf2 {[%clk 0:00:36.7]} 25.
Nxb7 {[%clk 0:00:23.9]} 25... Rxb7 {[%clk 0:00:35.6]} 26. Bc8 {[%clk 0:00:23.5]}
26... Nd3+ {[%clk 0:00:35.7]} 0-1

[Event "*** Titled Tuesday Blitz"]
[Site "Chess.com"]
[Date "2019.07.02"]
[Round "5"]
[White "KarstenHansch"]
[Black "FelixBlohberger"]
[Result "0-1"]
[WhiteElo "2418"]
[BlackElo "2518"]
[TimeControl "180+2"]
[EndTime "14:06:07 PDT"]
[Termination "FelixBlohberger won by resignation"]

1. e4 {[%clk 0:02:42.7]} 1... b6 {[%clk 0:03:01.9]} 2. d3 {[%clk 0:02:43.6]}
2... Bb7 {[%clk 0:02:56.7]} 3. Be3 {[%clk 0:02:45.1]} 3... d6 {[%clk 0:02:48]}
4. g3 {[%clk 0:02:45.9]} 4... g6 {[%clk 0:02:43.3]} 5. Bg2 {[%clk 0:02:47]} 5...
Bg7 {[%clk 0:02:43.6]} 6. c3 {[%clk 0:02:48.6]} 6... c5 {[%clk 0:02:40.9]} 7.
Nd2 {[%clk 0:02:49.5]} 7... Nc6 {[%clk 0:02:40.9]} 8. f4 {[%clk 0:02:50.6]} 8...
e6 {[%clk 0:02:38.3]} 9. Ngf3 {[%clk 0:02:50.6]} 9... Nge7 {[%clk 0:02:37.9]}
10. O-O {[%clk 0:02:50.9]} 10... Qd7 {[%clk 0:02:38.5]} 11. Qe2 {[%clk
0:02:36.4]} 11... h6 {[%clk 0:02:36.6]} 12. Rae1 {[%clk 0:02:35]} 12... O-O
{[%clk 0:02:32.9]} 13. Bf2 {[%clk 0:02:27.3]} 13... b5 {[%clk 0:02:29]} 14. g4
{[%clk 0:02:27.9]} 14... b4 {[%clk 0:02:28.6]} 15. d4 {[%clk 0:02:19.8]} 15...
bxc3 {[%clk 0:02:26.6]} 16. bxc3 {[%clk 0:02:20.1]} 16... cxd4 {[%clk
0:02:27.8]} 17. cxd4 {[%clk 0:02:21.2]} 17... a5 {[%clk 0:02:26.2]} 18. f5
{[%clk 0:02:04.5]} 18... Ba6 {[%clk 0:02:23.9]} 19. Qe3 {[%clk 0:02:05]} 19...
Bxf1 {[%clk 0:02:18.4]} 20. Nxf1 {[%clk 0:02:04]} 20... d5 {[%clk 0:02:01.7]}
21. g5 {[%clk 0:01:52.7]} 21... hxg5 {[%clk 0:01:43.4]} 22. Qxg5 {[%clk
0:01:35.9]} 22... exf5 {[%clk 0:01:35.1]} 23. exd5 {[%clk 0:01:32.3]} 23... Nxd5
{[%clk 0:01:32.7]} 24. Ne5 {[%clk 0:01:32]} 24... Nxe5 {[%clk 0:01:31.5]} 25.
dxe5 {[%clk 0:01:32.5]} 25... Qe6 {[%clk 0:01:30.2]} 26. Ne3 {[%clk 0:01:20]}
26... Nxe3 {[%clk 0:01:17.4]} 27. Bxa8 {[%clk 0:01:20]} 27... Nc2 {[%clk
0:00:58.2]} 28. Re2 {[%clk 0:01:19.5]} 28... Rxa8 {[%clk 0:00:56.3]} 29. Rxc2
{[%clk 0:01:20.2]} 29... Qxe5 {[%clk 0:00:57.1]} 30. Rd2 {[%clk 0:01:18]} 30...
Bf6 {[%clk 0:00:52.9]} 31. Qh6 {[%clk 0:01:13.2]} 31... Rc8 {[%clk 0:00:50.1]}
32. Rd1 {[%clk 0:01:12.3]} 32... Qe6 {[%clk 0:00:47.2]} 33. Qd2 {[%clk
0:01:12.2]} 33... Rd8 {[%clk 0:00:46.9]} 34. Qc2 {[%clk 0:01:10.6]} 34... Rxd1+
{[%clk 0:00:46.5]} 35. Qxd1 {[%clk 0:01:12.5]} 35... Qxa2 {[%clk 0:00:47.8]} 36.
Bd4 {[%clk 0:01:12.7]} 36... Qd5 {[%clk 0:00:46.6]} 0-1

[Event "*** Titled Tuesday Blitz"]
[Site "Chess.com"]
[Date "2019.07.02"]
[Round "5"]
[White "yoolund"]
[Black "AbasovN"]
[Result "0-1"]
[WhiteElo "2613"]
[BlackElo "2872"]
[TimeControl "180+2"]
[EndTime "14:06:09 PDT"]
[Termination "AbasovN won by resignation"]

1. d4 {[%clk 0:02:57.6]} 1... Nf6 {[%clk 0:03:00.1]} 2. Bg5 {[%clk 0:02:56.7]}
2... d5 {[%clk 0:02:57.1]} 3. Bxf6 {[%clk 0:02:57]} 3... exf6 {[%clk 0:02:59]}
4. e3 {[%clk 0:02:57.9]} 4... c6 {[%clk 0:02:58.9]} 5. c4 {[%clk 0:02:58.7]}
5... dxc4 {[%clk 0:03:00.8]} 6. Bxc4 {[%clk 0:02:59.8]} 6... Bd6 {[%clk
0:03:02.7]} 7. Nc3 {[%clk 0:03:00]} 7... Nd7 {[%clk 0:03:01.3]} 8. Nge2 {[%clk
0:03:00.9]} 8... Nb6 {[%clk 0:03:02.5]} 9. Bb3 {[%clk 0:02:58.1]} 9... a5 {[%clk
0:03:04]} 10. a3 {[%clk 0:02:58.3]} 10... O-O {[%clk 0:03:04.6]} 11. O-O {[%clk
0:02:54.6]} 11... Bf5 {[%clk 0:03:06.1]} 12. Ng3 {[%clk 0:02:52.9]} 12... Bg6
{[%clk 0:03:07.2]} 13. Rc1 {[%clk 0:02:33.7]} 13... Re8 {[%clk 0:03:08]} 14. Qf3
{[%clk 0:02:26.6]} 14... a4 {[%clk 0:03:06.5]} 15. Ba2 {[%clk 0:02:25.9]} 15...
Ra5 {[%clk 0:03:06.6]} 16. Rfd1 {[%clk 0:02:20.6]} 16... Bxg3 {[%clk 0:03:01.6]}
17. hxg3 {[%clk 0:02:19.2]} 17... Rg5 {[%clk 0:02:52.2]} 18. g4 {[%clk
0:01:35.6]} 18... f5 {[%clk 0:02:50.9]} 19. gxf5 {[%clk 0:01:16.8]} 19... Rxf5
{[%clk 0:02:52.8]} 20. Qg3 {[%clk 0:01:04.5]} 20... Rg5 {[%clk 0:02:53.1]} 21.
Qh2 {[%clk 0:01:02.8]} 21... Rh5 {[%clk 0:02:49.3]} 22. Qg3 {[%clk 0:01:01.3]}
22... Rg5 {[%clk 0:02:50.9]} 23. Qh2 {[%clk 0:01:02]} 23... h6 {[%clk
0:02:42.1]} 24. f4 {[%clk 0:00:26.9]} 24... Rg4 {[%clk 0:02:35.8]} 25. Re1
{[%clk 0:00:27.2]} 25... Qf6 {[%clk 0:02:19.3]} 26. Bb1 {[%clk 0:00:24.5]} 26...
Bxb1 {[%clk 0:02:16.2]} 27. Nxb1 {[%clk 0:00:26.4]} 27... Nd5 {[%clk 0:02:16.5]}
28. Qh3 {[%clk 0:00:23.7]} 28... Qg6 {[%clk 0:02:14.1]} 29. Kf2 {[%clk
0:00:11.8]} 29... Rxe3 {[%clk 0:01:27.5]} 30. Rxe3 {[%clk 0:00:11.3]} 30... Nxe3
{[%clk 0:01:29.4]} 31. Qxe3 {[%clk 0:00:09.2]} 31... Rxg2+ {[%clk 0:01:31]} 32.
Kf1 {[%clk 0:00:09.9]} 32... Rg3 {[%clk 0:01:24.4]} 33. Qf2 {[%clk 0:00:03.8]}
33... Qd3+ {[%clk 0:01:25.6]} 0-1